bitfinex/quotes_BTCUSD_20250726
["timestamp","ask_amount","ask_price","bid_price","bid_amount"]
[1753565096414,0.54318161,118080.0,118070.0,0.75039387]
[1753565096615,0.67090161,118080.0,118070.0,0.75039387]
[1753565097458,0.54318161,118080.0,118070.0,0.75039387]
[1753565097662,0.67090161,118080.0,118070.0,0.75039387]
[1753565101473,0.54318161,118080.0,118070.0,0.75039387]
[1753565101684,0.67090161,118080.0,118070.0,0.75039387]
[1753565101882,0.67090161,118080.0,118070.0,0.38035046]
[1753565102088,0.67090161,118080.0,118070.0,0.75039387]
[1753565105544,0.54318161,118080.0,118070.0,0.75039387]
[1753565106618,0.54318161,118080.0,118070.0,0.7588632]
[1753565108221,0.54318161,118080.0,118070.0,0.38881979]
[1753565108661,0.52634044,118080.0,118070.0,0.7620732]
[1753565110622,0.53480905,118080.0,118070.0,0.7620732]
[1753565110921,0.53480905,118080.0,118070.0,0.39202979]
[1753565111933,0.56046905,118080.0,118070.0,0.39202979]
[1753565113543,0.68818905,118080.0,118070.0,0.39202979]
[1753565113767,0.68818905,118080.0,118070.0,0.38881979]
[1753565115402,0.67972044,118080.0,118070.0,0.38035046]
[1753565115616,0.67972044,118080.0,118070.0,0.37188106]
[1753565115921,0.67972044,118080.0,118070.0,0.56406396]
[1753565116092,0.67972044,118080.0,118070.0,0.55559441]
[1753565116386,0.67125161,118080.0,118070.0,0.55559441]
[1753565116585,0.67125161,118080.0,118070.0,0.185551]
[1753565117320,0.66264839,118080.0,118070.0,0.185551]
[1753565117648,0.66264839,118080.0,118070.0,0.19402048]
[1753565117834,0.66264839,118080.0,118070.0,0.185551]
[1753565118995,0.66264839,118080.0,118070.0,0.55559441]
[1753565119421,0.66264839,118080.0,118070.0,0.54009441]
[1753565119874,0.66589839,118080.0,118070.0,0.54009441]
[1753565120359,0.66264839,118080.0,118070.0,0.54009441]
[1753565120572,0.66264839,118080.0,118070.0,0.170051]
[1753565121491,0.66589839,118080.0,118070.0,0.170051]
[1753565123585,0.53817839,118080.0,118070.0,0.170051]
[1753565125081,0.53817839,118080.0,118070.0,0.54009441]
[1753565127020,0.53817839,118080.0,118070.0,0.170051]
[1753565127304,0.53817839,118080.0,118070.0,0.17852055]
[1753565127538,0.18631413,118080.0,118070.0,0.74486447]
[1753565127779,0.18631413,118080.0,118070.0,0.82934177]
[1753565128072,0.18619083,118080.0,118070.0,0.82934177]
[1753565128337,0.18619083,118080.0,118070.0,0.64301171]
[1753565128903,0.21138083,118080.0,118070.0,0.55853441]
[1753565129065,0.21138083,118080.0,118070.0,0.55539441]
[1753565129274,0.21138083,118080.0,118070.0,0.54009441]
[1753565129498,0.21461083,118080.0,118070.0,0.54009441]
[1753565131130,0.21461083,118080.0,118070.0,0.170051]
[1753565132938,0.21461083,118080.0,118070.0,0.188591]
[1753565132939,0.21138083,118080.0,118070.0,0.188591]
[1753565133170,0.20303552,118080.0,118070.0,0.55863441]
[1753565134286,0.20303552,118080.0,118070.0,0.188591]
[1753565134708,0.20303552,118080.0,118070.0,0.170051]
[1753565135294,0.20626552,118080.0,118070.0,0.170051]
[1753565137755,0.21463129,118080.0,118070.0,0.170051]
[1753565157235,0.21463129,118080.0,118070.0,0.34791151]
[1753565163631,0.20616246,118080.0,118070.0,0.170051]
[1753565164040,0.20616246,118080.0,118070.0,0.17852055]
[1753565164259,0.57620587,118080.0,118070.0,0.17852055]
[1753565165554,0.20616246,118080.0,118070.0,0.17852055]
[1753565165769,0.20616246,118080.0,118070.0,0.35638106]
[1753565166430,0.57620587,118080.0,118070.0,0.129321]
[1753565166691,0.97824928,118080.0,118070.0,0.001641]
[1753565166888,1.40272658,118080.0,118070.0,0.001641]
[1753565176573,1.53040658,118080.0,118070.0,0.001641]
[1753565180844,0.79031976,118080.0,118070.0,0.001641]
[1753565181057,1.01546587,118080.0,118070.0,0.030201]
[1753565182483,1.0071001,118080.0,118070.0,0.030201]
[1753565182890,1.0301701,118080.0,118070.0,0.030201]
[1753565183359,1.0322101,118080.0,118070.0,0.030201]
[1753565186357,1.0322101,118080.0,118070.0,0.027091]
[1753565187368,0.9045301,118080.0,118070.0,0.027091]
[1753565187564,1.0322101,118080.0,118070.0,0.027091]
[1753565191526,1.04070136,118080.0,118070.0,0.027091]
[1753565191859,1.04364136,118080.0,118070.0,0.027091]
[1753565195951,0.67359795,118080.0,118070.0,0.027091]
[1753565196151,1.04364136,118080.0,118070.0,0.027091]
[1753565200105,0.91596136,118080.0,118070.0,0.003591]
[1753565200330,1.04364136,118080.0,118070.0,0.003591]
[1753565202563,1.04364136,118080.0,118070.0,0.001641]
[1753565212135,0.64554795,118080.0,118070.0,0.061371]
[1753565212350,0.19480497,118080.0,118070.0,0.62621344]
[1753565212534,0.02540527,118080.0,118070.0,0.62621344]
[1753565212745,0.03387396,118080.0,118070.0,0.68367897]
[1753565212953,0.17776448,118100.0,118090.0,0.20863046]
[1753565213176,1.01548789,118100.0,118090.0,0.22909235]
[1753565213371,0.88780789,118100.0,118090.0,0.05973]
[1753565213753,0.88780789,118100.0,118090.0,0.06819811]
[1753565214027,0.88780789,118100.0,118090.0,0.05973]
[1753565214209,0.88785643,118100.0,118090.0,0.05973]
[1753565217792,0.54123302,118100.0,118090.0,0.05973]
[1753565217995,0.91325643,118100.0,118090.0,0.05973]
[1753565218895,0.91627643,118100.0,118090.0,0.05671]
[1753565219081,0.91627643,118100.0,118090.0,0.0308]
[1753565219957,0.51783032,118090.0,118080.0,0.0317]
[1753565220186,0.88985373,118090.0,118080.0,0.0317]
[1753565220373,1.04405373,118090.0,118080.0,0.0317]
[1753565220845,1.04405373,118090.0,118080.0,0.05599]
[1753565221028,1.04405373,118090.0,118080.0,0.05811]
[1753565221496,1.04405373,118090.0,118080.0,0.06011]
[1753565221929,1.04405373,118090.0,118080.0,0.06111]
[1753565229294,1.04405373,118090.0,118080.0,0.06957883]
[1753565230321,0.54625032,118090.0,118080.0,0.06957883]
[1753565230500,0.91629373,118090.0,118080.0,0.06957883]
[1753565231483,0.91327373,118090.0,118080.0,0.06957883]
[1753565231925,0.91629373,118090.0,118080.0,0.06957883]
[1753565232391,0.91629373,118090.0,118080.0,0.06111]
[1753565234710,0.91327373,118090.0,118080.0,0.06111]
[1753565235393,0.91629373,118090.0,118080.0,0.06111]
[1753565236997,0.91629373,118090.0,118080.0,0.06957883]
[1753565237436,0.91327373,118090.0,118080.0,0.06957883]
[1753565239676,0.55169822,118090.0,118080.0,0.07804759]
[1753565239844,0.92174163,118090.0,118080.0,0.07804759]
[1753565242757,0.92476163,118090.0,118080.0,0.07804759]
[1753565243465,0.55471822,118090.0,118080.0,0.07804759]
[1753565243703,0.92476163,118090.0,118080.0,0.07804759]
[1753565246420,0.55471822,118090.0,118080.0,0.07804759]
[1753565246653,0.92476163,118090.0,118080.0,0.07804759]
[1753565248113,0.92476163,118090.0,118080.0,0.03533759]
[1753565248361,0.92476163,118090.0,118080.0,0.05063759]
[1753565249860,0.91629373,118090.0,118080.0,0.003]
[1753565254799,0.91629373,118090.0,118080.0,0.00290957]
[1753565257880,0.91629373,118090.0,118080.0,0.13062957]
[1753565259814,0.91629373,118090.0,118080.0,0.00290957]
[1753565260056,0.91629373,118090.0,118080.0,0.13062957]
[1753565263156,0.91629373,118090.0,118080.0,0.13058957]
[1753565301338,0.91629373,118090.0,118080.0,0.32493509]
[1753565301959,0.91629373,118090.0,118080.0,0.31646626]
[1753565302822,0.73846341,118090.0,118080.0,0.34187189]
[1753565303034,0.93867713,118090.0,118080.0,0.36540495]
[1753565303254,0.93020959,118090.0,118080.0,0.36540495]
[1753565303511,0.93020959,118090.0,118080.0,0.37704371]
[1753565303728,0.90678959,118090.0,118080.0,0.36857502]
[1753565303912,0.90678959,118090.0,118080.0,0.37704363]
[1753565305492,0.90678959,118090.0,118080.0,0.37704371]
[1753565306161,0.90678959,118090.0,118080.0,0.36857502]
[1753565306370,0.90678959,118090.0,118080.0,0.37704371]
[1753565307429,0.93012959,118090.0,118080.0,0.37704371]
[1753565308616,0.93012959,118090.0,118080.0,0.37387371]
[1753565310876,0.93012959,118090.0,118080.0,0.38234232]
[1753565314548,0.93012959,118090.0,118080.0,0.37387371]
[1753565315401,0.92166184,118090.0,118080.0,0.37387371]
[1753565315830,0.92166184,118090.0,118080.0,0.36540502]
[1753565316285,0.91623387,118090.0,118080.0,0.34245502]
[1753565316826,0.90776576,118090.0,118080.0,0.33398626]
[1753565317055,0.90776576,118090.0,118080.0,0.34245509]
[1753565317862,0.90776576,118090.0,118080.0,0.36708509]
[1753565318525,0.53772235,118090.0,118080.0,0.36708509]
[1753565318731,0.90776576,118090.0,118080.0,0.36708509]
[1753565319179,0.90776576,118090.0,118080.0,0.37555385]
[1753565319742,0.53772235,118090.0,118080.0,0.37555385]
[1753565319927,0.90776576,118090.0,118080.0,0.37555385]
[1753565333785,0.9162338,118090.0,118080.0,0.37555385]
[1753565333965,0.9162338,118090.0,118080.0,0.38402254]
[1753565334583,0.9162338,118090.0,118080.0,0.39249115]
[1753565335047,0.9162338,118090.0,118080.0,0.38402254]
[1753565336215,0.9162338,118090.0,118080.0,0.39249115]
[1753565336840,0.9162338,118090.0,118080.0,0.38402254]
[1753565337040,0.9162338,118090.0,118080.0,0.37555385]
[1753565337239,0.9162338,118090.0,118080.0,0.38402254]
[1753565337617,0.9162338,118090.0,118080.0,0.37555385]
[1753565338508,0.9162338,118090.0,118080.0,0.38402254]
[1753565340130,0.92470163,118090.0,118080.0,0.39249115]
[1753565340338,0.92470163,118090.0,118080.0,0.38402254]
[1753565340541,0.55465822,118090.0,118080.0,0.38402254]
[1753565340748,0.92470163,118090.0,118080.0,0.38402254]
[1753565343965,0.92470163,118090.0,118080.0,0.37555385]
[1753565344393,0.92470163,118090.0,118080.0,0.36708509]
[1753565344990,0.92470163,118090.0,118080.0,0.37555385]
[1753565348779,0.92470163,118090.0,118080.0,0.38402254]
[1753565349176,0.92470163,118090.0,118080.0,0.37555385]
[1753565349595,0.92470163,118090.0,118080.0,0.37551385]
[1753565349793,0.92470163,118090.0,118080.0,0.38398254]
[1753565350317,0.92470163,118090.0,118080.0,0.37551385]
[1753565355883,0.92470163,118090.0,118080.0,0.38398254]
[1753565356081,0.92470163,118090.0,118080.0,0.37551385]
[1753565356305,0.92470163,118090.0,118080.0,0.38398254]
[1753565356515,0.92470163,118090.0,118080.0,0.37551385]
[1753565356670,0.92470163,118090.0,118080.0,0.38398254]
[1753565357111,0.92470163,118090.0,118080.0,0.37551385]
[1753565357559,0.92470163,118090.0,118080.0,0.38398254]
[1753565362802,0.92470163,118090.0,118080.0,0.39245115]
[1753565365055,0.92470163,118090.0,118080.0,0.40091969]
[1753565372070,0.92470163,118090.0,118080.0,0.39245115]
[1753565372850,0.92470163,118090.0,118080.0,0.40091969]
[1753565375461,0.92470163,118090.0,118080.0,0.39245115]
[1753565376679,0.92470163,118090.0,118080.0,0.40091969]
[1753565377735,0.92470163,118090.0,118080.0,0.40091933]
[1753565377954,0.92470163,118090.0,118080.0,0.39245086]
[1753565378603,0.92470163,118090.0,118080.0,0.35857626]
[1753565378830,0.92470163,118090.0,118080.0,0.29992626]
[1753565379050,0.92470163,118090.0,118080.0,0.31686371]
[1753565383949,0.92470163,118090.0,118080.0,0.1390184]
[1753565384162,0.90776576,118090.0,118080.0,0.00290957]
[1753565384349,0.90776576,118090.0,118080.0,0.13054957]
[1753565384806,0.93886576,118090.0,118080.0,0.13054957]
[1753565386428,0.93886576,118090.0,118080.0,0.00290957]
[1753565386656,0.93886576,118090.0,118080.0,0.13054957]
[1753565395918,0.92336576,118090.0,118080.0,0.13054957]
[1753565396712,0.90776576,118090.0,118080.0,0.13054957]
[1753565397123,0.93956578,118090.0,118080.0,0.13054957]
[1753565397334,0.90776576,118090.0,118080.0,0.13054957]
[1753565404856,0.90776576,118090.0,118080.0,0.13050957]
[1753565405933,0.90776576,118090.0,118080.0,0.00290957]
[1753565406066,0.90776576,118090.0,118080.0,0.13050957]
[1753565413573,0.53772235,118090.0,118080.0,0.33905495]
[1753565413797,0.34,118090.0,118080.0,0.38431182]
[1753565414022,0.36540319,118090.0,118080.0,0.38431182]
[1753565414247,0.35693529,118090.0,118080.0,0.38431182]
[1753565414478,0.7269787,118090.0,118080.0,0.38431182]
[1753565414725,0.7354466,118090.0,118080.0,0.38431182]
[1753565415631,0.7269787,118090.0,118080.0,0.38431182]
[1753565415840,0.7354466,118090.0,118080.0,0.38431182]
[1753565415971,0.73544653,118090.0,118080.0,0.38431182]
[1753565418166,0.7354466,118090.0,118080.0,0.38431182]
[1753565418836,0.7269787,118090.0,118080.0,0.38431182]
[1753565419694,0.7354466,118090.0,118080.0,0.38431182]
[1753565420157,0.73544653,118090.0,118080.0,0.38431182]
[1753565426244,0.00860201,118100.0,118090.0,0.18629807]
[1753565426434,0.02553558,118100.0,118090.0,0.22952568]
[1753565426633,0.02553558,118100.0,118090.0,0.25510568]
[1753565427219,0.00860201,118100.0,118090.0,0.70962639]
[1753565427416,0.00860201,118100.0,118090.0,0.75659211]
[1753565427640,0.01706876,118100.0,118090.0,0.3865487]
[1753565427985,0.00860201,118100.0,118090.0,0.3865487]
[1753565428387,4.854e-05,118100.0,118090.0,0.3865487]
[1753565429680,0.00851536,118100.0,118090.0,0.3865487]
[1753565429903,4.854e-05,118100.0,118090.0,0.33958298]
[1753565431934,0.00851529,118100.0,118090.0,0.33958298]
[1753565434428,4.854e-05,118100.0,118090.0,0.33958298]
[1753565435784,0.00851536,118100.0,118090.0,0.33958298]
[1753565436026,0.00851529,118100.0,118090.0,0.33958298]
[1753565437186,0.01698218,118100.0,118090.0,0.33958298]
[1753565438760,0.00851529,118100.0,118090.0,0.33958298]
[1753565439868,0.00851529,118100.0,118090.0,0.36634182]
[1753565440303,4.854e-05,118100.0,118090.0,0.36634182]
[1753565440510,4.854e-05,118100.0,118090.0,0.73638523]
[1753565441174,4.854e-05,118100.0,118090.0,0.36634182]
[1753565441435,4.854e-05,118100.0,118090.0,0.73638523]
[1753565444138,0.00851529,118100.0,118090.0,0.36634182]
[1753565444348,0.00851529,118100.0,118090.0,0.73638523]
[1753565444589,4.854e-05,118100.0,118090.0,0.73638523]
[1753565450633,4.854e-05,118100.0,118090.0,0.86394523]
[1753565457479,4.854e-05,118100.0,118090.0,0.86594523]
[1753565458107,4.854e-05,118100.0,118090.0,0.86694523]
[1753565461745,0.39952195,118100.0,118090.0,0.17236235]
[1753565461963,0.61600439,118100.0,118090.0,0.29992235]
[1753565462183,0.61600439,118100.0,118090.0,0.30839039]
[1753565462454,0.60753728,118100.0,118090.0,0.30839039]
[1753565462683,0.60753728,118100.0,118090.0,0.18929836]
[1753565462915,0.60753728,118100.0,118090.0,0.31685836]
[1753565463341,0.60753728,118100.0,118090.0,0.32532611]
[1753565465168,0.62447179,118100.0,118090.0,0.32532611]
[1753565465379,0.44665638,118100.0,118090.0,0.33379372]
[1753565466455,0.45512378,118100.0,118090.0,0.32532611]
[1753565467091,0.45512378,118100.0,118090.0,0.33379379]
[1753565467528,0.45512327,118100.0,118090.0,0.33379379]
[1753565468585,0.45512327,118100.0,118090.0,0.3422614]
[1753565469047,0.44665595,118100.0,118090.0,0.3422614]
[1753565472774,0.44665588,118100.0,118090.0,0.3422614]
[1753565473000,0.45512306,118100.0,118090.0,0.3422614]
[1753565473441,0.41645588,118100.0,118090.0,0.3422614]
[1753565473658,0.04641247,118100.0,118090.0,0.3442814]
[1753565473869,0.42492313,118100.0,118090.0,0.3685814]
[1753565474526,0.43339045,118100.0,118090.0,0.38058642]
[1753565475170,0.43339045,118100.0,118090.0,0.3685814]
[1753565475390,0.42492313,118100.0,118090.0,0.3685814]
[1753565483288,0.41645588,118100.0,118090.0,0.3685814]
[1753565483410,0.42492313,118100.0,118090.0,0.3685814]
[1753565484008,0.04641247,118100.0,118090.0,0.3685814]
[1753565484208,0.42492306,118100.0,118090.0,0.3685814]
[1753565485240,0.42492306,118100.0,118090.0,0.4530587]
[1753565487022,0.42492299,118100.0,118090.0,0.4530587]
[1753565488961,0.43339024,118100.0,118090.0,0.4530587]
[1753565489870,0.44185756,118100.0,118090.0,0.3685814]
[1753565490103,0.44185807,118100.0,118090.0,0.3685814]
[1753565491617,0.43339067,118100.0,118090.0,0.3685814]
[1753565492318,0.43339067,118100.0,118090.0,0.3685414]
[1753565493688,0.42492335,118100.0,118090.0,0.3685414]
[1753565494316,0.43339067,118100.0,118090.0,0.3685414]
[1753565495187,0.43339067,118100.0,118090.0,0.2410214]
[1753565495399,0.43339067,118100.0,118090.0,0.3685414]
[1753565497137,0.43339067,118100.0,118090.0,0.2410214]
[1753565497383,0.43339067,118100.0,118090.0,0.3685414]
[1753565501583,0.43339067,118100.0,118090.0,0.2410214]
[1753565501790,0.43339067,118100.0,118090.0,0.3685414]
[1753565504545,0.44185807,118100.0,118090.0,0.36007379]
[1753565507112,0.02947854,118100.0,118090.0,0.3685414]
[1753565507322,0.42492292,118100.0,118090.0,0.3685414]
[1753565507768,0.05487951,118100.0,118090.0,0.3685414]
[1753565507977,0.05179951,118100.0,118090.0,0.3685414]
[1753565508866,0.05179944,118100.0,118090.0,0.3685414]
[1753565509068,0.06026669,118100.0,118090.0,0.3685414]
[1753565509281,0.05179944,118100.0,118090.0,0.3685414]
[1753565509467,0.06026662,118100.0,118090.0,0.3685414]
[1753565509705,0.06873387,118100.0,118090.0,0.3685414]
[1753565514195,0.06026662,118100.0,118090.0,0.3685414]
[1753565514624,0.06873387,118100.0,118090.0,0.3685414]
[1753565515301,0.43877728,118100.0,118090.0,0.3685414]
[1753565517053,0.06873387,118100.0,118090.0,0.3685414]
[1753565518155,0.43877728,118100.0,118090.0,0.3685414]
[1753565518542,0.06873387,118100.0,118090.0,0.3685414]
[1753565519508,0.06026662,118100.0,118090.0,0.3685414]
[1753565519991,0.06873437,118100.0,118090.0,0.3685414]
[1753565520444,0.06026705,118100.0,118090.0,0.3685414]
[1753565521090,0.0517998,118100.0,118090.0,0.3685414]
[1753565521312,0.0517998,118100.0,118090.0,0.3717514]
[1753565521972,0.06026705,118100.0,118090.0,0.3717514]
[1753565524418,0.0517998,118100.0,118090.0,0.3717514]
[1753565526629,0.04333262,118100.0,118090.0,0.3717514]
[1753565528499,0.01894262,118100.0,118090.0,0.3717514]
[1753565529451,0.0274093,118100.0,118090.0,0.3717514]
[1753565530098,0.03587648,118100.0,118090.0,0.3717514]
[1753565531240,0.0274093,118100.0,118090.0,0.3717514]
[1753565531452,0.03587641,118100.0,118090.0,0.3717514]
[1753565533807,0.0274093,118100.0,118090.0,0.3717514]
[1753565534048,0.03587648,118100.0,118090.0,0.3717514]
[1753565535106,0.0274093,118100.0,118090.0,0.3717514]
[1753565535329,0.03587641,118100.0,118090.0,0.3717514]
[1753565536705,0.0274093,118100.0,118090.0,0.3717514]
[1753565540239,0.01894226,118100.0,118090.0,0.3717514]
[1753565542250,0.02740937,118100.0,118090.0,0.3717514]
[1753565542466,0.0274093,118100.0,118090.0,0.3717514]
[1753565543309,0.0274093,118100.0,118090.0,0.2442314]
[1753565543529,0.0274093,118100.0,118090.0,0.3717514]
[1753565544565,0.01894226,118100.0,118090.0,0.3717514]
[1753565547049,0.01047529,118100.0,118090.0,0.3717514]
[1753565547472,0.01894218,118100.0,118090.0,0.3717514]
[1753565549876,0.01698218,118100.0,118090.0,0.3717514]
[1753565550248,0.01698211,118100.0,118090.0,0.3717514]
[1753565551002,0.025449,118100.0,118090.0,0.3717514]
[1753565551922,0.025449,118100.0,118090.0,0.74179481]
[1753565552916,0.025449,118100.0,118090.0,0.74175481]
[1753565555384,0.025449,118100.0,118090.0,0.79760758]
[1753565556217,0.01698211,118100.0,118090.0,0.79760758]
[1753565557473,0.02544908,118100.0,118090.0,0.79760758]
[1753565557690,0.01698211,118100.0,118090.0,0.79760758]
[1753565558257,0.02544908,118100.0,118090.0,0.74175481]
[1753565558468,0.025449,118100.0,118090.0,0.74175481]
[1753565559863,0.025449,118100.0,118090.0,0.3717114]
[1753565560050,0.025449,118100.0,118090.0,0.74175481]
[1753565562956,0.025449,118100.0,118090.0,0.3717114]
[1753565563151,0.03391597,118100.0,118090.0,0.3717114]
[1753565567003,0.06827308,118100.0,118090.0,0.3717114]
[1753565567166,0.06827301,118100.0,118090.0,0.3717114]
[1753565569286,0.05980597,118100.0,118090.0,0.3717114]
[1753565570444,0.03607597,118100.0,118090.0,0.3717114]
[1753565571044,0.04454301,118100.0,118090.0,0.3717114]
[1753565572211,0.03607626,118100.0,118090.0,0.3717114]
[1753565572416,0.04454344,118100.0,118090.0,0.3717114]
[1753565572593,0.06827344,118100.0,118090.0,0.3717114]
[1753565572998,0.05980626,118100.0,118090.0,0.3717114]
[1753565573585,0.06827337,118100.0,118090.0,0.3717114]
[1753565574475,0.04454337,118100.0,118090.0,0.3717114]
[1753565575746,0.06899337,118100.0,118090.0,0.3717114]
[1753565576084,0.04454337,118100.0,118090.0,0.3717114]
[1753565577301,0.04454337,118100.0,118090.0,0.2442314]
[1753565577514,0.04454337,118100.0,118090.0,0.3717114]
[1753565578624,0.0445438,118100.0,118090.0,0.3717114]
[1753565578818,0.03607655,118100.0,118090.0,0.3717114]
[1753565581614,0.04454373,118100.0,118090.0,0.3717114]
[1753565582050,0.03607655,118100.0,118090.0,0.3717114]
[1753565583778,0.02760944,118100.0,118090.0,0.3717114]
[1753565584673,0.03607662,118100.0,118090.0,0.3717114]
[1753565585333,0.02760944,118100.0,118090.0,0.3717114]
[1753565585519,0.03607662,118100.0,118090.0,0.3717114]
[1753565586866,0.02544944,118100.0,118090.0,0.3717114]
[1753565587964,0.03391655,118100.0,118090.0,0.3717114]
[1753565588635,0.03391655,118100.0,118090.0,0.74175481]
[1753565588852,0.02544944,118100.0,118090.0,0.74175481]
[1753565589554,0.02544944,118100.0,118090.0,0.75825481]
[1753565589759,0.0169824,118100.0,118090.0,0.75825481]
[1753565589990,0.02544944,118100.0,118090.0,0.75825481]
[1753565590208,0.0169824,118100.0,118090.0,0.75825481]
[1753565591469,0.02544944,118100.0,118090.0,0.75825481]
[1753565593120,0.0169824,118100.0,118090.0,0.75825481]
[1753565593961,0.02544951,118100.0,118090.0,0.75825481]
[1753565594174,0.0169824,118100.0,118090.0,0.75825481]
[1753565595215,0.02544944,118100.0,118090.0,0.75825481]
[1753565596101,0.03391662,118100.0,118090.0,0.3882114]
[1753565596307,0.02544944,118100.0,118090.0,0.3882114]
[1753565596732,0.03391662,118100.0,118090.0,0.3882114]
[1753565596952,0.02544944,118100.0,118090.0,0.3717114]
[1753565599311,0.0169824,118100.0,118090.0,0.3717114]
[1753565603619,0.00851543,118100.0,118090.0,0.3717114]
[1753565603877,0.00851536,118100.0,118090.0,0.3875114]
[1753565604096,0.01698225,118100.0,118090.0,0.3875114]
[1753565606708,0.00851536,118100.0,118090.0,0.3875114]
[1753565606914,0.01698233,118100.0,118090.0,0.3875114]
[1753565607128,0.01698233,118100.0,118090.0,0.75755481]
[1753565607578,0.00851536,118100.0,118090.0,0.75755481]
[1753565607811,0.01698233,118100.0,118090.0,0.75755481]
[1753565608033,0.01698233,118100.0,118090.0,0.77567279]
[1753565608258,4.854e-05,118100.0,118090.0,0.40562938]
[1753565608492,4.854e-05,118100.0,118090.0,0.87635009]
[1753565630156,4.854e-05,118100.0,118090.0,0.50630668]
[1753565630377,4.854e-05,118100.0,118090.0,0.87635009]
[1753565632703,4.854e-05,118100.0,118090.0,0.85823211]
[1753565638752,4.854e-05,118100.0,118090.0,0.4881887]
[1753565638958,4.854e-05,118100.0,118090.0,0.85823211]
[1753565643143,4.854e-05,118100.0,118090.0,0.88353818]
[1753565659813,4.854e-05,118100.0,118090.0,0.51349477]
[1753565660319,4.854e-05,118100.0,118090.0,0.95182533]
[1753565661215,4.854e-05,118100.0,118090.0,0.96013662]
[1753565663165,4.854e-05,118100.0,118090.0,0.95182533]
[1753565665653,4.854e-05,118100.0,118090.0,0.96014801]
[1753565666868,4.854e-05,118100.0,118090.0,0.95182533]
[1753565667069,4.854e-05,118100.0,118090.0,0.58178192]
[1753565667275,4.854e-05,118100.0,118090.0,0.95182533]
[1753565669443,4.854e-05,118100.0,118090.0,0.96038741]
[1753565672457,4.854e-05,118100.0,118090.0,0.58178192]
[1753565672673,4.854e-05,118100.0,118090.0,0.95182533]
[1753565673555,4.854e-05,118100.0,118090.0,0.9601998]
[1753565674524,4.854e-05,118100.0,118090.0,0.9581998]
[1753565674746,4.854e-05,118100.0,118090.0,0.9571998]
[1753565674973,4.854e-05,118100.0,118090.0,0.9601998]
[1753565675173,4.854e-05,118100.0,118090.0,0.9641998]
[1753565680221,0.09516754,118130.0,118120.0,0.02539703]
[1753565680437,0.09777353,118130.0,118120.0,0.77703707]
[1753565680641,0.09777353,118130.0,118120.0,0.86151437]
[1753565681306,0.09777353,118130.0,118120.0,0.49147096]
[1753565681681,0.09877353,118130.0,118120.0,0.49147096]
[1753565684023,0.03114599,118130.0,118120.0,0.49147096]
[1753565686502,0.03114599,118130.0,118120.0,0.51632096]
[1753565688633,0.03114599,118130.0,118120.0,0.51835096]
[1753565691073,0.02808599,118130.0,118120.0,0.51835096]
[1753565694519,0.02808599,118130.0,118120.0,0.43387366]
[1753565695476,0.02808599,118130.0,118120.0,0.80391707]
[1753565696035,0.02808599,118130.0,118120.0,0.43387366]
[1753565697108,0.02808599,118130.0,118120.0,0.43686366]
[1753565697312,0.00360599,118130.0,118120.0,0.43686366]
[1753565697511,0.00148599,118130.0,118120.0,0.43686366]
[1753565698130,0.00148599,118130.0,118120.0,0.80690707]
[1753565698347,0.00148599,118130.0,118120.0,0.85532535]
[1753565700258,0.00148599,118130.0,118120.0,0.48528194]
[1753565701701,0.02636599,118130.0,118120.0,0.48528194]
[1753565703248,0.02636599,118130.0,118120.0,0.43686366]
[1753565706850,0.02636599,118130.0,118120.0,0.4617989]
[1753565708293,0.00350599,118130.0,118120.0,0.4617989]
[1753565713696,0.00350599,118130.0,118120.0,0.43686366]
[1753565721311,0.00148599,118130.0,118120.0,0.43686366]
[1753565722736,0.00148599,118130.0,118120.0,0.45467301]
[1753565723604,0.00148599,118130.0,118120.0,0.43686366]
[1753565751632,0.00995066,118130.0,118120.0,0.43686366]
[1753565751815,0.00148599,118130.0,118120.0,0.43686366]
[1753565764124,0.00995059,118130.0,118120.0,0.43686366]
[1753565764647,0.00148599,118130.0,118120.0,0.43686366]
[1753565765636,0.3715294,118130.0,118120.0,0.43686366]
[1753565773367,0.00148599,118130.0,118120.0,0.46816366]
[1753565773581,0.00148599,118130.0,118120.0,0.55264096]
[1753565775696,0.00048599,118130.0,118120.0,0.55264096]
[1753565775871,0.00048599,118130.0,118120.0,0.46816366]
[1753565776079,0.00048599,118130.0,118120.0,0.46916366]
[1753565776311,0.00048599,118130.0,118120.0,0.47016366]
[1753565782849,0.3705294,118130.0,118120.0,0.47016366]
[1753565785067,0.00048599,118130.0,118120.0,0.47016366]
[1753565785418,0.00048599,118130.0,118120.0,0.53189931]
[1753565785625,0.3705294,118130.0,118120.0,0.53189931]
[1753565786255,0.3705294,118130.0,118120.0,0.47016366]
[1753565786615,0.00048599,118130.0,118120.0,0.47016366]
[1753565801414,0.00895059,118130.0,118120.0,0.47016366]
[1753565801620,0.00895059,118130.0,118120.0,0.45406366]
[1753565801834,0.3705294,118130.0,118120.0,0.45406366]
[1753565802047,0.378994,118130.0,118120.0,0.45406366]
[1753565802250,0.378994,118130.0,118120.0,0.43886366]
[1753565802495,0.3705294,118130.0,118120.0,0.43886366]
[1753565805133,0.6269495,118130.0,118120.0,0.17131933]
[1753565805340,0.25690609,118130.0,118120.0,0.29899933]
[1753565805548,0.6269495,118130.0,118120.0,0.29899933]
[1753565807179,0.5951495,118130.0,118120.0,0.29899933]
[1753565807535,0.6109495,118130.0,118120.0,0.29899933]
[1753565807804,0.6269495,118130.0,118120.0,0.29899933]
[1753565808557,0.6269495,118130.0,118120.0,0.30746529]
[1753565809028,0.5951495,118130.0,118120.0,0.30746529]
[1753565809249,0.5951495,118130.0,118120.0,0.29899933]
[1753565809403,0.6269495,118130.0,118120.0,0.29899933]
[1753565809916,0.4576445,118130.0,118120.0,0.30746522]
[1753565810450,0.4576445,118130.0,118120.0,0.29899933]
[1753565810656,0.4576445,118130.0,118120.0,0.31593118]
[1753565810860,0.46610873,118130.0,118120.0,0.31593118]
[1753565811067,0.47457369,118130.0,118120.0,0.31593118]
[1753565811701,0.47457369,118130.0,118120.0,0.30746529]
[1753565811898,0.47457369,118130.0,118120.0,0.31593118]
[1753565812758,0.46610852,118130.0,118120.0,0.324397]
[1753565813062,0.44277362,118130.0,118120.0,0.33286275]
[1753565813235,0.44277362,118130.0,118120.0,0.324397]
[1753565813910,0.44277362,118130.0,118120.0,0.31593118]
[1753565814132,0.44277362,118130.0,118120.0,0.324397]
[1753565814462,0.43430902,118130.0,118120.0,0.31593118]
[1753565815248,0.43430902,118130.0,118120.0,0.324397]
[1753565816743,0.43430902,118130.0,118120.0,0.31593118]
[1753565817155,0.43430902,118130.0,118120.0,0.324397]
[1753565818949,0.43430902,118130.0,118120.0,0.31593118]
[1753565819360,0.43430902,118130.0,118120.0,0.324397]
[1753565819569,0.43430902,118130.0,118120.0,0.31593118]
[1753565819777,0.43430902,118130.0,118120.0,0.324397]
[1753565820181,0.43430902,118130.0,118120.0,0.31593118]
[1753565820426,0.43430902,118130.0,118120.0,0.33286275]
[1753565820646,0.43430902,118130.0,118120.0,0.324397]
[1753565821734,0.43430902,118130.0,118120.0,0.348317]
[1753565823791,0.43430902,118130.0,118120.0,0.35678275]
[1753565824001,0.43430902,118130.0,118120.0,0.35887275]
[1753565824415,0.43430902,118130.0,118120.0,0.350407]